[Event "Live Chess"]
[Site "Chess.com"]
[Date "2024.06.01"]
[Round "-"]
[White "Mangoalo"]
[Black "CarmelJane"]
[Result "0-1"]
[WhiteElo "1060"]
[BlackElo "2071"]
[TimeControl "300"]
[EndTime "15:23:29 PDT"]
[Termination "CarmelJane won by resignation"]

1. e4 {[%clk 0:04:58.5]} 1... c6 {[%clk 0:04:57.1]} 2. d4 {[%clk 0:04:57.1]}
2... d5 {[%clk 0:04:55.8]} 3. exd5 {[%clk 0:04:57]} 3... cxd5 {[%clk 0:04:54.4]}
4. Bf4 {[%clk 0:04:56.2]} 4... Nc6 {[%clk 0:04:50.1]} 5. Nf3 {[%clk 0:04:55.7]}
5... a6 {[%clk 0:04:48.2]} 6. Be2 {[%clk 0:04:53.2]} 6... Nf6 {[%clk 0:04:45.7]}
7. O-O {[%clk 0:04:52.2]} 7... Bf5 {[%clk 0:04:45.1]} 8. Nbd2 {[%clk 0:04:50.4]}
8... e6 {[%clk 0:04:44.2]} 9. c3 {[%clk 0:04:49.4]} 9... Bd6 {[%clk 0:04:38.6]}
10. Bxd6 {[%clk 0:04:47.5]} 10... Qxd6 {[%clk 0:04:37]} 11. Nh4 {[%clk
0:04:46.4]} 11... Bg6 {[%clk 0:04:35.5]} 12. Nxg6 {[%clk 0:04:43.8]} 12... hxg6
{[%clk 0:04:35.2]} 13. Nf3 {[%clk 0:04:42.6]} 13... Ng4 {[%clk 0:04:32]} 14. h3
{[%clk 0:04:36.5]} 14... Nf6 {[%clk 0:04:24.5]} 15. Bd3 {[%clk 0:04:30.6]} 15...
O-O-O {[%clk 0:04:23.3]} 16. Re1 {[%clk 0:04:27.9]} 16... Kb8 {[%clk 0:04:22.3]}
17. Ne5 {[%clk 0:04:26.7]} 17... Qe7 {[%clk 0:04:11.6]} 18. Nxc6+ {[%clk
0:04:22.5]} 18... bxc6 {[%clk 0:04:11.5]} 19. Qb3+ {[%clk 0:04:21]} 19... Qb7
{[%clk 0:04:08.8]} 20. Qxb7+ {[%clk 0:04:19.1]} 20... Kxb7 {[%clk 0:04:07.8]}
21. a4 {[%clk 0:04:17.1]} 21... Nd7 {[%clk 0:03:46.8]} 22. a5 {[%clk 0:04:14.1]}
22... c5 {[%clk 0:03:45]} 23. b4 {[%clk 0:04:14]} 23... c4 {[%clk 0:03:43.8]}
24. Bc2 {[%clk 0:04:10.5]} 24... Rh5 {[%clk 0:03:39.4]} 25. Bd1 {[%clk
0:04:07.8]} 25... Rh6 {[%clk 0:03:36.2]} 26. Re3 {[%clk 0:04:02.2]} 26... Nf6
{[%clk 0:03:30.7]} 27. Bf3 {[%clk 0:03:59.7]} 27... Ne8 {[%clk 0:03:28]} 28.
Rae1 {[%clk 0:03:57.3]} 28... Nd6 {[%clk 0:03:25]} 29. Bg4 {[%clk 0:03:54.3]}
29... Nb5 {[%clk 0:03:17.8]} 30. f4 {[%clk 0:03:33]} 30... Rhh8 {[%clk
0:03:15.7]} 31. Kh2 {[%clk 0:03:29.2]} 31... Nd6 {[%clk 0:03:13]} 32. Bxe6
{[%clk 0:03:23.9]} 32... fxe6 {[%clk 0:03:10.2]} 33. Rxe6 {[%clk 0:03:23.8]}
33... Ne4 {[%clk 0:03:09.4]} 34. Rxg6 {[%clk 0:03:16.5]} 34... Rhg8 {[%clk
0:03:02.3]} 35. f5 {[%clk 0:03:13.9]} 35... Rd6 {[%clk 0:02:58.2]} 36. Rxd6
{[%clk 0:03:10.4]} 36... Nxd6 {[%clk 0:02:56.4]} 37. g4 {[%clk 0:03:07.6]} 37...
Ne4 {[%clk 0:02:55.1]} 38. Re3 {[%clk 0:03:00.5]} 38... Kc6 {[%clk 0:02:49.3]}
39. h4 {[%clk 0:02:55.3]} 39... Kb5 {[%clk 0:02:48.5]} 40. g5 {[%clk 0:02:53.9]}
40... Ka4 {[%clk 0:02:46.2]} 41. h5 {[%clk 0:02:50.4]} 41... Nxg5 {[%clk
0:02:44.2]} 42. Kg3 {[%clk 0:02:47.9]} 42... Ne4+ {[%clk 0:02:43.3]} 43. Kf4
{[%clk 0:02:46.6]} 43... Kb3 {[%clk 0:02:40.9]} 44. Rxe4 {[%clk 0:02:42.8]}
44... dxe4 {[%clk 0:02:39.6]} 45. Kxe4 {[%clk 0:02:42.7]} 45... Kxc3 {[%clk
0:02:38.6]} 46. d5 {[%clk 0:02:42.5]} 46... Kxb4 {[%clk 0:02:35.9]} 47. d6
{[%clk 0:02:41.9]} 47... c3 {[%clk 0:02:35]} 48. d7 {[%clk 0:02:40.7]} 48... c2
{[%clk 0:02:33.4]} 49. Kf4 {[%clk 0:02:39.1]} 49... c1=Q+ {[%clk 0:02:32.3]} 50.
Ke5 {[%clk 0:02:37.8]} 0-1

[Event "Live Chess"]
[Site "Chess.com"]
[Date "2024.06.01"]
[Round "-"]
[White "vincents82"]
[Black "SavagePawn7"]
[Result "1-0"]
[WhiteElo "2046"]
[BlackElo "658"]
[TimeControl "300"]
[EndTime "15:23:51 PDT"]
[Termination "vincents82 won by checkmate"]

1. e4 {[%clk 0:04:57.3]} 1... d5 {[%clk 0:04:58.4]} 2. exd5 {[%clk 0:04:55.8]}
2... Nf6 {[%clk 0:04:56.9]} 3. d4 {[%clk 0:04:54.2]} 3... Nxd5 {[%clk 0:04:55]}
4. Nf3 {[%clk 0:04:53.2]} 4... Nc6 {[%clk 0:04:53.5]} 5. Be2 {[%clk 0:04:52.5]}
5... Bg4 {[%clk 0:04:50.7]} 6. O-O {[%clk 0:04:51.7]} 6... Qd6 {[%clk
0:04:45.7]} 7. c3 {[%clk 0:04:50.4]} 7... Bxf3 {[%clk 0:04:42.1]} 8. Bxf3 {[%clk
0:04:49.3]} 8... O-O-O {[%clk 0:04:37]} 9. Nd2 {[%clk 0:04:48.1]} 9... e6 {[%clk
0:04:22.7]} 10. Ne4 {[%clk 0:04:46.9]} 10... Qe7 {[%clk 0:04:09.5]} 11. Be3
{[%clk 0:04:35]} 11... Nxe3 {[%clk 0:04:03.9]} 12. fxe3 {[%clk 0:04:33.7]} 12...
f5 {[%clk 0:03:53.9]} 13. Nc5 {[%clk 0:04:29.2]} 13... Qf7 {[%clk 0:03:42.9]}
14. Bxc6 {[%clk 0:04:23.1]} 14... bxc6 {[%clk 0:03:40.5]} 15. Qb3 {[%clk
0:04:18.7]} 15... Bxc5 {[%clk 0:03:36.8]} 16. dxc5 {[%clk 0:04:16]} 16... Rd2
{[%clk 0:03:14.7]} 17. Rad1 {[%clk 0:04:01.7]} 17... Re2 {[%clk 0:03:06.1]} 18.
Qc4 {[%clk 0:03:53.2]} 18... Rxe3 {[%clk 0:03:02.3]} 19. Qa6+ {[%clk 0:03:38.1]}
19... Kb8 {[%clk 0:02:59.7]} 20. Rd4 {[%clk 0:03:37]} 20... Qg6 {[%clk
0:02:38.3]} 21. Rb4+ {[%clk 0:03:32.9]} 21... Ka8 {[%clk 0:02:26.9]} 22. Qb7#
{[%clk 0:03:31.2]} 1-0

[Event "Live Chess"]
[Site "Chess.com"]
[Date "2024.06.01"]
[Round "-"]
[White "ACM42"]
[Black "Delacorta"]
[Result "1-0"]
[WhiteElo "2155"]
[BlackElo "1542"]
[TimeControl "300"]
[EndTime "15:24:01 PDT"]
[Termination "ACM42 won by resignation"]

1. e4 {[%clk 0:04:57]} 1... e6 {[%clk 0:04:58.9]} 2. d4 {[%clk 0:04:55.7]} 2...
d5 {[%clk 0:04:58.2]} 3. Nc3 {[%clk 0:04:54]} 3... dxe4 {[%clk 0:04:56.1]} 4.
Nxe4 {[%clk 0:04:52.8]} 4... Bd7 {[%clk 0:04:55.5]} 5. Ne2 {[%clk 0:04:49.7]}
5... Bc6 {[%clk 0:04:54.8]} 6. N2g3 {[%clk 0:04:48.1]} 6... Nd7 {[%clk
0:04:51.8]} 7. Bd3 {[%clk 0:04:47]} 7... Ngf6 {[%clk 0:04:50]} 8. O-O {[%clk
0:04:43.8]} 8... Bxe4 {[%clk 0:04:43.7]} 9. Nxe4 {[%clk 0:04:42.9]} 9... c6
{[%clk 0:04:42.9]} 10. c4 {[%clk 0:04:40.8]} 10... Nxe4 {[%clk 0:04:36.7]} 11.
Bxe4 {[%clk 0:04:39.3]} 11... Nf6 {[%clk 0:04:35.5]} 12. Bf3 {[%clk 0:04:36.6]}
12... Be7 {[%clk 0:04:34]} 13. b3 {[%clk 0:04:35.3]} 13... O-O {[%clk
0:04:32.8]} 14. Bb2 {[%clk 0:04:34.5]} 14... Qc7 {[%clk 0:04:26.7]} 15. Qe2
{[%clk 0:04:32.4]} 15... Rfe8 {[%clk 0:04:25.8]} 16. Rad1 {[%clk 0:04:30.5]}
16... Qf4 {[%clk 0:04:15.3]} 17. Qe5 {[%clk 0:04:28.6]} 17... Qxe5 {[%clk
0:04:14.2]} 18. dxe5 {[%clk 0:04:27.5]} 1-0

[Event "Live Chess"]
[Site "Chess.com"]
[Date "2024.06.01"]
[Round "-"]
[White "Berdgross"]
[Black "lyricalschemes"]
[Result "0-1"]
[WhiteElo "581"]
[BlackElo "2450"]
[TimeControl "300"]
[EndTime "15:24:04 PDT"]
[Termination "lyricalschemes won by resignation"]

1. e4 {[%clk 0:04:56]} 1... Nf6 {[%clk 0:04:59]} 2. d3 {[%clk 0:04:55.9]} 2...
e5 {[%clk 0:04:55.9]} 3. Nc3 {[%clk 0:04:55.8]} 3... Nc6 {[%clk 0:04:54.9]} 4.
a3 {[%clk 0:04:53.8]} 4... d5 {[%clk 0:04:53.6]} 5. Nf3 {[%clk 0:04:53.5]} 5...
dxe4 {[%clk 0:04:52.6]} 6. dxe4 {[%clk 0:04:51.4]} 6... Qxd1+ {[%clk 0:04:51.3]}
7. Kxd1 {[%clk 0:04:46.9]} 7... Bg4 {[%clk 0:04:50.1]} 8. Be2 {[%clk 0:04:43.6]}
8... O-O-O+ {[%clk 0:04:47.3]} 9. Ke1 {[%clk 0:04:40.6]} 9... Bc5 {[%clk
0:04:45.3]} 10. Bg5 {[%clk 0:04:36.8]} 10... Bxf3 {[%clk 0:04:43.1]} 11. Bxf3
{[%clk 0:04:34.5]} 11... Nd4 {[%clk 0:04:42.7]} 12. Bxf6 {[%clk 0:04:30]} 12...
Nxc2+ {[%clk 0:04:35.6]} 13. Ke2 {[%clk 0:04:23.8]} 13... gxf6 {[%clk
0:04:35.5]} 14. Rad1 {[%clk 0:04:15.8]} 14... Nd4+ {[%clk 0:04:33.1]} 15. Kf1
{[%clk 0:04:08.3]} 15... c6 {[%clk 0:04:31.2]} 16. Bg4+ {[%clk 0:04:03.2]} 16...
Kb8 {[%clk 0:04:29.1]} 17. g3 {[%clk 0:03:37.7]} 17... h5 {[%clk 0:04:26.9]} 18.
Bh3 {[%clk 0:03:33.6]} 18... h4 {[%clk 0:04:16.3]} 19. g4 {[%clk 0:03:28.7]}
19... Ne6 {[%clk 0:04:09.6]} 20. Kg2 {[%clk 0:03:19.1]} 20... Nf4+ {[%clk
0:04:03.5]} 21. Kf3 {[%clk 0:03:11.5]} 21... Nxh3 {[%clk 0:04:02]} 22. Rxd8+
{[%clk 0:03:08.5]} 22... Rxd8 {[%clk 0:03:49.1]} 23. Rd1 {[%clk 0:03:02.6]}
23... Rxd1 {[%clk 0:03:46.9]} 24. Nxd1 {[%clk 0:03:00.9]} 24... Ng5+ {[%clk
0:03:46]} 25. Kg2 {[%clk 0:02:54.7]} 25... Nxe4 {[%clk 0:03:45.1]} 26. Nc3
{[%clk 0:02:47]} 26... Nxc3 {[%clk 0:03:43.9]} 27. bxc3 {[%clk 0:02:45.4]} 27...
Bxa3 {[%clk 0:03:43.8]} 0-1

[Event "Live Chess"]
[Site "Chess.com"]
[Date "2024.06.01"]
[Round "-"]
[White "AlexanderMatlak"]
[Black "nigelst"]
[Result "0-1"]
[WhiteElo "2390"]
[BlackElo "1703"]
[TimeControl "300"]
[EndTime "15:24:25 PDT"]
[Termination "nigelst won by resignation"]

1. e4 {[%clk 0:04:56.2]} 1... c6 {[%clk 0:04:58.5]} 2. d4 {[%clk 0:04:55]} 2...
d5 {[%clk 0:04:57.9]} 3. e5 {[%clk 0:04:54.5]} 3... c5 {[%clk 0:04:56.6]} 4.
dxc5 {[%clk 0:04:52.9]} 4... e6 {[%clk 0:04:54.1]} 5. Nf3 {[%clk 0:04:52.2]}
5... Bxc5 {[%clk 0:04:52.3]} 6. Bd3 {[%clk 0:04:51.4]} 6... Nc6 {[%clk
0:04:45.3]} 7. O-O {[%clk 0:04:49.9]} 7... Nge7 {[%clk 0:04:42.9]} 8. a3 {[%clk
0:04:46.2]} 8... a6 {[%clk 0:04:38.6]} 9. b4 {[%clk 0:04:37.7]} 9... Bd4 {[%clk
0:04:35.4]} 10. Nxd4 {[%clk 0:04:29.3]} 10... Nxd4 {[%clk 0:04:32.4]} 11. Qg4
{[%clk 0:04:28.3]} 11... Ndf5 {[%clk 0:04:28.4]} 12. Bb2 {[%clk 0:04:15.7]}
12... h5 {[%clk 0:04:22.6]} 13. Qe2 {[%clk 0:04:12.5]} 13... Qc7 {[%clk
0:04:13]} 14. Nd2 {[%clk 0:04:09.1]} 14... b5 {[%clk 0:04:11.8]} 15. Nf3 {[%clk
0:04:00.8]} 15... Bb7 {[%clk 0:04:09.6]} 16. Ng5 {[%clk 0:03:53.9]} 16... g6
{[%clk 0:04:02.1]} 17. a4 {[%clk 0:03:51]} 17... O-O {[%clk 0:03:57.5]} 18. axb5
{[%clk 0:03:43]} 18... axb5 {[%clk 0:03:55.4]} 19. Bxb5 {[%clk 0:03:42]} 19...
Qb6 {[%clk 0:03:38.6]} 20. c3 {[%clk 0:03:06.5]} 20... Rfc8 {[%clk 0:03:30.6]}
21. Bd3 {[%clk 0:03:01.3]} 21... Qc6 {[%clk 0:03:24.7]} 22. b5 {[%clk
0:02:52.3]} 22... Qb6 {[%clk 0:03:20.8]} 23. Rfc1 {[%clk 0:02:38.3]} 23... Rxa1
{[%clk 0:03:15.9]} 24. Rxa1 {[%clk 0:02:38.2]} 24... d4 {[%clk 0:03:05]} 25.
cxd4 {[%clk 0:02:30.1]} 25... Nxd4 {[%clk 0:03:02.7]} 26. Qe3 {[%clk 0:02:18]}
26... Rd8 {[%clk 0:02:59.2]} 27. Ne4 {[%clk 0:02:05.3]} 27... Nef5 {[%clk
0:02:53.7]} 28. Nf6+ {[%clk 0:02:01.3]} 28... Kg7 {[%clk 0:02:50]} 29. Qg5
{[%clk 0:01:57.5]} 29... Kh8 {[%clk 0:02:37.7]} 30. h3 {[%clk 0:01:51.6]} 30...
Nf3+ {[%clk 0:02:33.9]} 31. gxf3 {[%clk 0:01:48.1]} 31... Rxd3 {[%clk
0:02:32.4]} 32. Rf1 {[%clk 0:00:55.7]} 32... Rxf3 {[%clk 0:02:29.1]} 33. Qd2
{[%clk 0:00:38.7]} 33... Rxh3 {[%clk 0:02:07.3]} 0-1

[Event "Live Chess"]
[Site "Chess.com"]
[Date "2024.06.01"]
[Round "-"]
[White "updatedopenings2024"]
[Black "Mangoalo"]
[Result "1-0"]
[WhiteElo "1959"]
[BlackElo "1060"]
[TimeControl "300"]
[EndTime "15:24:43 PDT"]
[Termination "updatedopenings2024 won by resignation"]

1. g3 {[%clk 0:04:57.2]} 1... Nc6 {[%clk 0:04:59.9]} 2. Bg2 {[%clk 0:04:57.1]}
2... d5 {[%clk 0:04:59.6]} 3. Nf3 {[%clk 0:04:57]} 3... e5 {[%clk 0:04:58]} 4.
O-O {[%clk 0:04:56.9]} 4... e4 {[%clk 0:04:57.5]} 5. Ne1 {[%clk 0:04:56.1]} 5...
Nf6 {[%clk 0:04:57]} 6. d4 {[%clk 0:04:56]} 6... Bb4 {[%clk 0:04:55.7]} 7. c4
{[%clk 0:04:55.9]} 7... Bxe1 {[%clk 0:04:52.8]} 8. Rxe1 {[%clk 0:04:55]} 8...
dxc4 {[%clk 0:04:51.9]} 9. e3 {[%clk 0:04:54.1]} 9... O-O {[%clk 0:04:49.7]} 10.
Nc3 {[%clk 0:04:54]} 10... Re8 {[%clk 0:04:48.7]} 11. Qc2 {[%clk 0:04:53.3]}
11... Bf5 {[%clk 0:04:45.3]} 12. a3 {[%clk 0:04:50.1]} 12... h6 {[%clk
0:04:44.4]} 13. Na4 {[%clk 0:04:43.5]} 13... Qd7 {[%clk 0:04:41.8]} 14. Qxc4
{[%clk 0:04:41.4]} 14... Be6 {[%clk 0:04:38.4]} 15. Qc2 {[%clk 0:04:39.9]} 15...
b5 {[%clk 0:04:31.9]} 16. Nc5 {[%clk 0:04:39.3]} 16... Qd6 {[%clk 0:04:29.7]}
17. Nxe4 {[%clk 0:04:38.4]} 17... Nxe4 {[%clk 0:04:28.1]} 18. Bxe4 {[%clk
0:04:38.3]} 1-0

[Event "Live Chess"]
[Site "Chess.com"]
[Date "2024.06.01"]
[Round "-"]
[White "wadsy27"]
[Black "Harry_Li"]
[Result "1-0"]
[WhiteElo "2542"]
[BlackElo "2081"]
[TimeControl "300"]
[EndTime "15:24:55 PDT"]
[Termination "wadsy27 won by resignation"]

1. d4 {[%clk 0:04:58.8]} 1... d5 {[%clk 0:04:57.2]} 2. g3 {[%clk 0:04:58.1]}
2... e6 {[%clk 0:04:53.5]} 3. Bg2 {[%clk 0:04:57.7]} 3... c5 {[%clk 0:04:52.8]}
4. Nf3 {[%clk 0:04:57]} 4... Nc6 {[%clk 0:04:52.1]} 5. O-O {[%clk 0:04:54.8]}
5... cxd4 {[%clk 0:04:49.4]} 6. Nxd4 {[%clk 0:04:53.9]} 6... Bc5 {[%clk
0:04:49]} 7. Nb3 {[%clk 0:04:51.9]} 7... Bb6 {[%clk 0:04:48.3]} 8. a4 {[%clk
0:04:45.3]} 8... a5 {[%clk 0:04:41.9]} 9. Nc3 {[%clk 0:04:43.9]} 9... Nf6 {[%clk
0:04:37.9]} 10. Nb5 {[%clk 0:04:43.4]} 10... O-O {[%clk 0:04:33.3]} 11. Bf4
{[%clk 0:04:42.2]} 11... h6 {[%clk 0:04:24]} 12. Rc1 {[%clk 0:04:29.5]} 12... e5
{[%clk 0:04:22.3]} 13. Bd2 {[%clk 0:04:28.7]} 13... Be6 {[%clk 0:04:15.7]} 14.
e3 {[%clk 0:04:16.4]} 14... Rc8 {[%clk 0:04:12.2]} 15. Qe2 {[%clk 0:04:14.4]}
15... Bg4 {[%clk 0:04:07.9]} 16. Bf3 {[%clk 0:04:10.4]} 16... Bxf3 {[%clk
0:04:01.6]} 17. Qxf3 {[%clk 0:04:10.3]} 17... e4 {[%clk 0:04:00.6]} 18. Qg2
{[%clk 0:04:07.1]} 18... Ne5 {[%clk 0:03:57.8]} 19. N3d4 {[%clk 0:04:06.1]}
19... Qd7 {[%clk 0:03:31.2]} 20. Bc3 {[%clk 0:04:00]} 20... Rfe8 {[%clk
0:03:16.4]} 21. Rfd1 {[%clk 0:03:55.6]} 21... h5 {[%clk 0:03:01.7]} 22. h3
{[%clk 0:03:54.1]} 22... Rc4 {[%clk 0:02:45.1]} 23. Kh1 {[%clk 0:03:51.4]} 23...
Rxa4 {[%clk 0:02:24.6]} 24. b3 {[%clk 0:03:50.4]} 24... Ra2 {[%clk 0:02:23.7]}
25. Ba1 {[%clk 0:03:21.6]} 25... a4 {[%clk 0:02:09.4]} 26. Nc3 {[%clk
0:03:18.5]} 26... axb3 {[%clk 0:02:02.1]} 27. Nxa2 {[%clk 0:03:16.3]} 27... bxa2
{[%clk 0:02:02]} 28. Ne2 {[%clk 0:03:05.8]} 28... Nf3 {[%clk 0:01:44.6]} 29.
Bxf6 {[%clk 0:03:03.7]} 29... gxf6 {[%clk 0:01:44]} 30. Nf4 {[%clk 0:03:03]}
30... Re5 {[%clk 0:01:36.9]} 31. Ra1 {[%clk 0:02:40.7]} 31... Qa4 {[%clk
0:01:34.6]} 32. Nxd5 {[%clk 0:02:35.3]} 32... Ba5 {[%clk 0:01:00.5]} 33. Nxf6+
{[%clk 0:02:25.3]} 33... Kg7 {[%clk 0:00:56.8]} 34. Nxe4 {[%clk 0:02:08.9]}
34... Qxe4 {[%clk 0:00:54.5]} 35. Rxa2 {[%clk 0:02:08.4]} 35... Qf5 {[%clk
0:00:37.3]} 36. g4 {[%clk 0:01:41.5]} 36... hxg4 {[%clk 0:00:34.5]} 37. Qxg4+
{[%clk 0:01:41.4]} 37... Kf6 {[%clk 0:00:24.1]} 38. Ra4 {[%clk 0:01:16.9]} 38...
Qxg4 {[%clk 0:00:11.7]} 39. hxg4 {[%clk 0:01:16]} 39... b6 {[%clk 0:00:09.7]}
40. Rf4+ {[%clk 0:01:15]} 40... Kg5 {[%clk 0:00:08.4]} 41. Rxf3 {[%clk
0:01:14.2]} 41... Kxg4 {[%clk 0:00:08]} 42. Rf4+ {[%clk 0:01:13.3]} 42... Kg5
{[%clk 0:00:07]} 43. Rg1+ {[%clk 0:01:12.4]} 43... Kh6 {[%clk 0:00:06.3]} 44.
Rh4+ {[%clk 0:01:11]} 44... Rh5 {[%clk 0:00:06.2]} 45. Rxh5+ {[%clk 0:01:09.7]}
45... Kxh5 {[%clk 0:00:06.1]} 46. Rg7 {[%clk 0:01:08.8]} 1-0

[Event "Live Chess"]
[Site "Chess.com"]
[Date "2024.06.01"]
[Round "-"]
[White "ShanthamGrarks"]
[Black "agamilewska"]
[Result "1-0"]
[WhiteElo "1800"]
[BlackElo "1772"]
[TimeControl "300"]
[EndTime "15:25:04 PDT"]
[Termination "ShanthamGrarks won by resignation"]

1. d4 {[%clk 0:04:54]} 1... d5 {[%clk 0:04:59.9]} 2. Nc3 {[%clk 0:04:49.5]} 2...
Nf6 {[%clk 0:04:59.8]} 3. Bf4 {[%clk 0:04:46.1]} 3... Nc6 {[%clk 0:04:59.7]} 4.
Nb5 {[%clk 0:04:41.5]} 4... e5 {[%clk 0:04:48.1]} 5. dxe5 {[%clk 0:04:38.8]}
5... Nxe5 {[%clk 0:04:42.5]} 6. Bxe5 {[%clk 0:04:33.8]} 6... Bb4+ {[%clk
0:04:38.6]} 7. c3 {[%clk 0:04:31.9]} 7... Ba5 {[%clk 0:04:35.5]} 8. Bxf6 {[%clk
0:04:29.7]} 8... Qxf6 {[%clk 0:04:34.5]} 9. Nd4 {[%clk 0:04:27.6]} 9... c6
{[%clk 0:04:31.9]} 10. Ngf3 {[%clk 0:04:11.2]} 10... c5 {[%clk 0:04:30.4]} 11.
Nb3 {[%clk 0:04:06.2]} 11... Bb6 {[%clk 0:04:17.7]} 12. e3 {[%clk 0:04:03.2]}
12... O-O {[%clk 0:04:16.2]} 13. Be2 {[%clk 0:04:00.8]} 13... Bg4 {[%clk
0:04:15.3]} 14. O-O {[%clk 0:03:59.3]} 14... c4 {[%clk 0:04:14.2]} 15. Nbd4
{[%clk 0:03:56.6]} 15... Rfe8 {[%clk 0:04:11.9]} 16. h3 {[%clk 0:03:54.4]} 16...
Bxf3 {[%clk 0:04:10.5]} 17. Bxf3 {[%clk 0:03:51.9]} 17... h6 {[%clk 0:04:05.4]}
18. Bxd5 {[%clk 0:03:49.8]} 1-0

[Event "Live Chess"]
[Site "Chess.com"]
[Date "2024.06.01"]
[Round "-"]
[White "MellowAesthetic"]
[Black "TigerTank70"]
[Result "0-1"]
[WhiteElo "2083"]
[BlackElo "2229"]
[TimeControl "300"]
[EndTime "15:25:20 PDT"]
[Termination "TigerTank70 won by resignation"]

1. e4 {[%clk 0:04:58.1]} 1... e5 {[%clk 0:04:58.2]} 2. Nf3 {[%clk 0:04:56.9]}
2... Nc6 {[%clk 0:04:57.4]} 3. Bc4 {[%clk 0:04:55.8]} 3... Nf6 {[%clk
0:04:54.3]} 4. d3 {[%clk 0:04:54.9]} 4... Be7 {[%clk 0:04:52.9]} 5. O-O {[%clk
0:04:53.9]} 5... O-O {[%clk 0:04:52.5]} 6. a4 {[%clk 0:04:51.8]} 6... d5 {[%clk
0:04:51.7]} 7. exd5 {[%clk 0:04:50.5]} 7... Nxd5 {[%clk 0:04:51.2]} 8. Re1
{[%clk 0:04:49.8]} 8... Bf6 {[%clk 0:04:50]} 9. c3 {[%clk 0:04:33.3]} 9... Bg4
{[%clk 0:04:45.6]} 10. Nbd2 {[%clk 0:04:31.8]} 10... Na5 {[%clk 0:04:39.9]} 11.
Ba2 {[%clk 0:04:28.8]} 11... Nf4 {[%clk 0:04:35.9]} 12. Nc4 {[%clk 0:04:09.9]}
12... Nc6 {[%clk 0:04:17]} 13. h3 {[%clk 0:03:59.4]} 13... Bh5 {[%clk 0:04:12]}
14. Bxf4 {[%clk 0:03:55.2]} 14... exf4 {[%clk 0:04:09]} 15. d4 {[%clk
0:03:54.7]} 15... Qd7 {[%clk 0:03:56.6]} 16. Nce5 {[%clk 0:02:59.1]} 16... Bxe5
{[%clk 0:03:02.9]} 17. Nxe5 {[%clk 0:02:47.2]} 17... Nxe5 {[%clk 0:02:58]} 18.
Qxh5 {[%clk 0:02:42.6]} 18... Nd3 {[%clk 0:02:28.1]} 19. Re2 {[%clk 0:02:40.5]}
19... Rae8 {[%clk 0:02:13.5]} 20. Qf3 {[%clk 0:02:32]} 20... Qf5 {[%clk
0:01:52.6]} 21. Rd1 {[%clk 0:02:01.8]} 21... Rxe2 {[%clk 0:01:29.7]} 22. Qxe2
{[%clk 0:02:00.1]} 22... Nxb2 {[%clk 0:01:13.1]} 23. Qxb2 {[%clk 0:01:58.2]}
23... f3 {[%clk 0:01:12.8]} 24. Qxb7 {[%clk 0:01:45.2]} 24... fxg2 {[%clk
0:01:09.2]} 25. Re1 {[%clk 0:00:44.9]} 25... Qxh3 {[%clk 0:01:03.3]} 26. Qxg2
{[%clk 0:00:44.4]} 26... Qxc3 {[%clk 0:00:58.4]} 27. Qd5 {[%clk 0:00:43.5]}
27... Qxe1+ {[%clk 0:00:56.8]} 0-1

[Event "Live Chess"]
[Site "Chess.com"]
[Date "2024.06.01"]
[Round "-"]
[White "gmnorfolk"]
[Black "cymbalshift"]
[Result "0-1"]
[WhiteElo "2111"]
[BlackElo "1692"]
[TimeControl "300"]
[EndTime "15:25:30 PDT"]
[Termination "cymbalshift won by resignation"]

1. c4 {[%clk 0:04:56]} 1... c5 {[%clk 0:04:57.9]} 2. g3 {[%clk 0:04:53.3]} 2...
Nf6 {[%clk 0:04:55.7]} 3. Bg2 {[%clk 0:04:53]} 3... g6 {[%clk 0:04:53.7]} 4. Nc3
{[%clk 0:04:52.8]} 4... Bg7 {[%clk 0:04:53.2]} 5. d3 {[%clk 0:04:51.5]} 5... O-O
{[%clk 0:04:52.6]} 6. Bd2 {[%clk 0:04:49.3]} 6... Nc6 {[%clk 0:04:50.4]} 7. Qc1
{[%clk 0:04:48]} 7... d6 {[%clk 0:04:49.5]} 8. Bh6 {[%clk 0:04:46.5]} 8... e5
{[%clk 0:04:42.6]} 9. h4 {[%clk 0:04:44.1]} 9... Re8 {[%clk 0:04:38.7]} 10. Bxg7
{[%clk 0:04:39.5]} 10... Kxg7 {[%clk 0:04:38.6]} 11. Nf3 {[%clk 0:04:32.5]}
11... e4 {[%clk 0:04:35.6]} 12. dxe4 {[%clk 0:04:31]} 12... Nxe4 {[%clk
0:04:23.9]} 13. O-O {[%clk 0:04:29.2]} 13... Qf6 {[%clk 0:04:00.4]} 14. Nd5
{[%clk 0:04:21.8]} 14... Qd8 {[%clk 0:03:48.2]} 15. b3 {[%clk 0:04:18.8]} 15...
Bg4 {[%clk 0:03:33.9]} 16. Qb2+ {[%clk 0:04:16.3]} 16... Nf6 {[%clk 0:03:31.1]}
17. Rfd1 {[%clk 0:04:04]} 17... Ne5 {[%clk 0:02:58.6]} 18. Nxe5 {[%clk
0:03:58.9]} 18... Rxe5 {[%clk 0:02:56.9]} 19. f3 {[%clk 0:03:54.3]} 19... Bd7
{[%clk 0:02:50.6]} 20. f4 {[%clk 0:03:43.7]} 20... Re8 {[%clk 0:02:47.1]} 21.
Nxf6 {[%clk 0:03:38.9]} 21... Qxf6 {[%clk 0:02:45.1]} 22. Qxf6+ {[%clk
0:03:36.8]} 22... Kxf6 {[%clk 0:02:44.1]} 23. Bxb7 {[%clk 0:03:34.9]} 23... Rad8
{[%clk 0:02:36.8]} 24. Bf3 {[%clk 0:03:33.1]} 24... Bf5 {[%clk 0:02:25.4]} 25.
Rd2 {[%clk 0:03:30.6]} 25... h5 {[%clk 0:02:18.4]} 26. Rad1 {[%clk 0:03:26.8]}
26... Re6 {[%clk 0:02:13.1]} 27. Kf2 {[%clk 0:03:25]} 27... Ke7 {[%clk
0:02:11.5]} 28. e4 {[%clk 0:03:22.3]} 28... Bxe4 {[%clk 0:02:05.7]} 29. Bxe4
{[%clk 0:03:15.7]} 29... Rxe4 {[%clk 0:02:03.3]} 30. Kf3 {[%clk 0:03:12]} 30...
f5 {[%clk 0:02:01.5]} 31. Rd5 {[%clk 0:03:06.2]} 31... Rd7 {[%clk 0:01:47.7]}
32. R5d3 {[%clk 0:03:00.1]} 32... Re6 {[%clk 0:01:42.6]} 33. Re3 {[%clk
0:02:56.3]} 33... Rxe3+ {[%clk 0:01:33.1]} 34. Kxe3 {[%clk 0:02:56.2]} 34... Ke6
{[%clk 0:01:29.9]} 35. Kd3 {[%clk 0:02:55]} 35... Re7 {[%clk 0:01:28.6]} 36.
Re1+ {[%clk 0:02:49.4]} 36... Kd7 {[%clk 0:01:27.5]} 37. Rxe7+ {[%clk
0:02:48.1]} 37... Kxe7 {[%clk 0:01:27.4]} 38. a3 {[%clk 0:02:44]} 38... a5
{[%clk 0:01:25.9]} 39. Kc3 {[%clk 0:02:37.2]} 39... Kd7 {[%clk 0:01:24.9]} 40.
b4 {[%clk 0:02:36.5]} 40... axb4+ {[%clk 0:01:22.5]} 41. axb4 {[%clk 0:02:35.8]}
41... cxb4+ {[%clk 0:01:21.5]} 42. Kxb4 {[%clk 0:02:33.9]} 42... Kc6 {[%clk
0:01:19.7]} 43. Kb3 {[%clk 0:02:30.8]} 43... Kb6 {[%clk 0:01:18.1]} 44. Kc3
{[%clk 0:02:27.9]} 44... Kc5 {[%clk 0:01:16.7]} 45. Kd3 {[%clk 0:02:26.8]} 45...
d5 {[%clk 0:01:14.6]} 46. cxd5 {[%clk 0:02:25.1]} 46... Kxd5 {[%clk 0:01:13.9]}
47. Ke3 {[%clk 0:02:13.9]} 47... Kc4 {[%clk 0:01:12.4]} 48. Kf2 {[%clk
0:02:11.3]} 48... Kd4 {[%clk 0:00:55.2]} 49. Kf3 {[%clk 0:02:05.6]} 49... Kd3
{[%clk 0:00:54.2]} 50. Kf2 {[%clk 0:02:04.2]} 50... Kd2 {[%clk 0:00:51.6]} 51.
Kf3 {[%clk 0:02:03.3]} 51... Ke1 {[%clk 0:00:50.6]} 52. Kg2 {[%clk 0:01:55.6]}
52... Ke2 {[%clk 0:00:49.4]} 53. Kh3 {[%clk 0:01:48.7]} 53... Kf3 {[%clk
0:00:46.1]} 54. Kh2 {[%clk 0:01:47.7]} 54... Kf2 {[%clk 0:00:44.8]} 55. Kh3
{[%clk 0:01:47.2]} 55... Kg1 {[%clk 0:00:43.9]} 56. g4 {[%clk 0:01:41.2]} 56...
fxg4+ {[%clk 0:00:42.4]} 57. Kg3 {[%clk 0:01:40.3]} 57... Kf1 {[%clk 0:00:39.6]}
0-1